[Event "Late-Titled-Tuesday-Blitz-February-27-2024"]
[Site "Chess.com"]
[Date "2024.02.27"]
[Round "11"]
[White "jactorres"]
[Black "Resignify"]
[Result "0-1"]
[WhiteElo "2283"]
[BlackElo "2204"]
[TimeControl "180+1"]
[EndTime "16:06:48 PST"]
[Termination "Resignify won by checkmate"]

1. e4 {[%clk 0:02:37.1]} 1... d6 {[%clk 0:02:59.3]} 2. d4 {[%clk 0:02:36.9]}
2... Nf6 {[%clk 0:02:59]} 3. Nc3 {[%clk 0:02:33.5]} 3... g6 {[%clk 0:02:59.5]}
4. f4 {[%clk 0:02:33.9]} 4... Bg7 {[%clk 0:02:59.9]} 5. Nf3 {[%clk 0:02:34.5]}
5... O-O {[%clk 0:02:59.8]} 6. Bc4 {[%clk 0:02:35.1]} 6... c6 {[%clk 0:03:00.4]}
7. O-O {[%clk 0:02:32.5]} 7... d5 {[%clk 0:03:00.6]} 8. exd5 {[%clk 0:02:26.8]}
8... cxd5 {[%clk 0:03:01.5]} 9. Bb3 {[%clk 0:02:26.7]} 9... Nc6 {[%clk
0:03:01.2]} 10. Re1 {[%clk 0:02:24.6]} 10... Bg4 {[%clk 0:02:53.6]} 11. Be3
{[%clk 0:02:22.7]} 11... e6 {[%clk 0:02:43.7]} 12. h3 {[%clk 0:02:22.6]} 12...
Bxf3 {[%clk 0:02:43.7]} 13. Qxf3 {[%clk 0:02:23.5]} 13... Rc8 {[%clk 0:02:34.7]}
14. Rad1 {[%clk 0:02:22.4]} 14... a6 {[%clk 0:02:30.9]} 15. a4 {[%clk
0:02:20.7]} 15... Qb6 {[%clk 0:02:22.9]} 16. Bc1 {[%clk 0:01:59.4]} 16... Rfd8
{[%clk 0:01:34.4]} 17. Ne2 {[%clk 0:01:48.7]} 17... Ne4 {[%clk 0:01:29.8]} 18.
Ba2 {[%clk 0:01:27]} 18... Nxd4 {[%clk 0:01:18.5]} 19. Nxd4 {[%clk 0:01:25.8]}
19... Bxd4+ {[%clk 0:01:18.1]} 20. Kh2 {[%clk 0:01:19.3]} 20... Bf2 {[%clk
0:01:10.4]} 21. Be3 {[%clk 0:00:44.4]} 21... Bxe3 {[%clk 0:01:06.8]} 22. Rxe3
{[%clk 0:00:45.3]} 22... Qxb2 {[%clk 0:00:49.4]} 23. Bb3 {[%clk 0:00:44.3]}
23... Rc3 {[%clk 0:00:35.5]} 24. Rdd3 {[%clk 0:00:11.9]} 24... Rdc8 {[%clk
0:00:26.4]} 25. h4 {[%clk 0:00:04]} 25... h5 {[%clk 0:00:19.9]} 26. g4 {[%clk
0:00:03]} 26... hxg4 {[%clk 0:00:19]} 27. Qxg4 {[%clk 0:00:03]} 27... Rxd3
{[%clk 0:00:18.5]} 28. Rxd3 {[%clk 0:00:03.3]} 28... Rxc2+ {[%clk 0:00:12]} 29.
Bxc2 {[%clk 0:00:02.2]} 29... Qxc2+ {[%clk 0:00:12.9]} 30. Qg2 {[%clk
0:00:01.6]} 30... Qxd3 {[%clk 0:00:12.5]} 31. Kg1 {[%clk 0:00:01.6]} 31... Qd1+
{[%clk 0:00:11.1]} 32. Qf1 {[%clk 0:00:01.9]} 32... Qxf1+ {[%clk 0:00:10.7]} 33.
Kxf1 {[%clk 0:00:02.8]} 33... Nc3 {[%clk 0:00:10.6]} 34. Kf2 {[%clk 0:00:02.7]}
34... Nxa4 {[%clk 0:00:10.6]} 35. Ke3 {[%clk 0:00:03.5]} 35... Nc5 {[%clk
0:00:09.2]} 36. Kd4 {[%clk 0:00:04]} 36... Nd7 {[%clk 0:00:10.1]} 37. Kc3 {[%clk
0:00:03.8]} 37... b6 {[%clk 0:00:09.7]} 38. Kb4 {[%clk 0:00:04]} 38... Kg7
{[%clk 0:00:10.3]} 39. Kc3 {[%clk 0:00:04.2]} 39... Kf6 {[%clk 0:00:10.9]} 40.
Kd3 {[%clk 0:00:04.9]} 40... Kf5 {[%clk 0:00:11.6]} 41. Ke3 {[%clk 0:00:05.8]}
41... Kg4 {[%clk 0:00:11.9]} 42. h5 {[%clk 0:00:05.2]} 42... gxh5 {[%clk
0:00:11.3]} 43. Ke2 {[%clk 0:00:04.5]} 43... Kxf4 {[%clk 0:00:11.8]} 44. Kf2
{[%clk 0:00:05.4]} 44... f6 {[%clk 0:00:12.3]} 45. Kg2 {[%clk 0:00:06.3]} 45...
e5 {[%clk 0:00:12.7]} 46. Kh1 {[%clk 0:00:07.1]} 46... f5 {[%clk 0:00:13.6]} 47.
Kg1 {[%clk 0:00:07.8]} 47... Kg4 {[%clk 0:00:14]} 48. Kh2 {[%clk 0:00:08.7]}
48... h4 {[%clk 0:00:14.7]} 49. Kg2 {[%clk 0:00:09.6]} 49... f4 {[%clk
0:00:15.6]} 50. Kh1 {[%clk 0:00:10.5]} 50... e4 {[%clk 0:00:16.3]} 51. Kh2
{[%clk 0:00:11.4]} 51... d4 {[%clk 0:00:17.2]} 52. Kg2 {[%clk 0:00:12.3]} 52...
b5 {[%clk 0:00:18]} 53. Kg1 {[%clk 0:00:13.2]} 53... a5 {[%clk 0:00:18.9]} 54.
Kh2 {[%clk 0:00:14]} 54... a4 {[%clk 0:00:19.8]} 55. Kg2 {[%clk 0:00:14.9]}
55... b4 {[%clk 0:00:20.7]} 56. Kg1 {[%clk 0:00:15.5]} 56... f3 {[%clk
0:00:21.6]} 57. Kh2 {[%clk 0:00:16.3]} 57... e3 {[%clk 0:00:22]} 58. Kg1 {[%clk
0:00:16.3]} 58... d3 {[%clk 0:00:22.5]} 59. Kf1 {[%clk 0:00:17.2]} 59... Kg3
{[%clk 0:00:23]} 60. Ke1 {[%clk 0:00:18.1]} 60... h3 {[%clk 0:00:23.5]} 61. Kf1
{[%clk 0:00:19]} 61... b3 {[%clk 0:00:24]} 62. Kg1 {[%clk 0:00:19.9]} 62... a3
{[%clk 0:00:24.7]} 63. Kf1 {[%clk 0:00:20.8]} 63... a2 {[%clk 0:00:24.8]} 64.
Ke1 {[%clk 0:00:21.7]} 64... b2 {[%clk 0:00:25.1]} 65. Kd1 {[%clk 0:00:22.6]}
65... Ne5 {[%clk 0:00:24.5]} 66. Ke1 {[%clk 0:00:23.5]} 66... Nc4 {[%clk
0:00:23.3]} 67. Kf1 {[%clk 0:00:24.4]} 67... h2 {[%clk 0:00:16.7]} 68. Ke1
{[%clk 0:00:25.3]} 68... f2+ {[%clk 0:00:09]} 69. Kf1 {[%clk 0:00:26.2]} 69...
e2# {[%clk 0:00:08.8]} 0-1

[Event "Late-Titled-Tuesday-Blitz-February-27-2024"]
[Site "Chess.com"]
[Date "2024.02.27"]
[Round "11"]
[White "Bkmzzzzz"]
[Black "Boorchess"]
[Result "1-0"]
[WhiteElo "2423"]
[BlackElo "2504"]
[TimeControl "180+1"]
[EndTime "16:06:50 PST"]
[Termination "Bkmzzzzz won on time"]

1. e4 {[%clk 0:03:00.9]} 1... e5 {[%clk 0:02:58.6]} 2. Nf3 {[%clk 0:03:01]} 2...
Nf6 {[%clk 0:02:58.4]} 3. Nc3 {[%clk 0:03:01.3]} 3... Nc6 {[%clk 0:02:58]} 4. d4
{[%clk 0:03:01.5]} 4... exd4 {[%clk 0:02:57.9]} 5. Nxd4 {[%clk 0:03:02.4]} 5...
Bb4 {[%clk 0:02:57.9]} 6. Nxc6 {[%clk 0:03:02.7]} 6... bxc6 {[%clk 0:02:58.7]}
7. Bd3 {[%clk 0:03:02.9]} 7... O-O {[%clk 0:02:59.4]} 8. O-O {[%clk 0:03:02.6]}
8... Re8 {[%clk 0:02:59.7]} 9. Bg5 {[%clk 0:03:01.7]} 9... h6 {[%clk 0:02:59.6]}
10. Bh4 {[%clk 0:03:01.6]} 10... Rb8 {[%clk 0:02:59.1]} 11. Qf3 {[%clk 0:02:23]}
11... g5 {[%clk 0:02:54.1]} 12. Bg3 {[%clk 0:02:22.8]} 12... d5 {[%clk
0:02:31.2]} 13. Bxc7 {[%clk 0:01:46.4]} 13... Qxc7 {[%clk 0:02:31.1]} 14. Qxf6
{[%clk 0:01:46.3]} 14... Bxc3 {[%clk 0:01:12.4]} 15. Qxc3 {[%clk 0:01:37.7]}
15... dxe4 {[%clk 0:01:08.6]} 16. Bc4 {[%clk 0:01:37.5]} 16... Qe5 {[%clk
0:01:01]} 17. Qxe5 {[%clk 0:01:24.6]} 17... Rxe5 {[%clk 0:01:00.6]} 18. b3
{[%clk 0:01:25.3]} 18... Bg4 {[%clk 0:00:55.4]} 19. Rae1 {[%clk 0:00:55.8]}
19... Rbe8 {[%clk 0:00:51.9]} 20. f3 {[%clk 0:00:31.9]} 20... exf3 {[%clk
0:00:50.8]} 21. Rxe5 {[%clk 0:00:32.5]} 21... Rxe5 {[%clk 0:00:50.6]} 22. gxf3
{[%clk 0:00:33.1]} 22... Bh3 {[%clk 0:00:42.9]} 23. Rd1 {[%clk 0:00:31.3]} 23...
Re3 {[%clk 0:00:30.4]} 24. Kf2 {[%clk 0:00:31]} 24... Rc3 {[%clk 0:00:29.6]} 25.
Bd3 {[%clk 0:00:25.9]} 25... Kf8 {[%clk 0:00:26.9]} 26. Re1 {[%clk 0:00:25.6]}
26... Rc5 {[%clk 0:00:26.3]} 27. Kg3 {[%clk 0:00:20.6]} 27... Be6 {[%clk
0:00:25.2]} 28. a4 {[%clk 0:00:18.3]} 28... Ke7 {[%clk 0:00:21]} 29. h4 {[%clk
0:00:17.9]} 29... Kf6 {[%clk 0:00:20.5]} 30. hxg5+ {[%clk 0:00:18]} 30... hxg5
{[%clk 0:00:20.4]} 31. Rh1 {[%clk 0:00:17.5]} 31... Re5 {[%clk 0:00:18.3]} 32.
Rh6+ {[%clk 0:00:17.2]} 32... Ke7 {[%clk 0:00:18]} 33. Rh8 {[%clk 0:00:17.3]}
33... a5 {[%clk 0:00:18.1]} 34. Ra8 {[%clk 0:00:17.3]} 34... Kd6 {[%clk
0:00:17.6]} 35. Ra7 {[%clk 0:00:17.4]} 35... Rc5 {[%clk 0:00:16.4]} 36. Be4
{[%clk 0:00:17]} 36... Ke5 {[%clk 0:00:15.9]} 37. Ra6 {[%clk 0:00:15.9]} 37...
f5 {[%clk 0:00:15.2]} 38. Bxc6 {[%clk 0:00:14.8]} 38... f4+ {[%clk 0:00:12.3]}
39. Kf2 {[%clk 0:00:13.4]} 39... Rxc2+ {[%clk 0:00:12.1]} 40. Ke1 {[%clk
0:00:13.2]} 40... Bxb3 {[%clk 0:00:11.3]} 41. Rxa5+ {[%clk 0:00:12.5]} 41... Kd4
{[%clk 0:00:10.7]} 42. Be4 {[%clk 0:00:12.6]} 42... Ra2 {[%clk 0:00:07.4]} 43.
Rxg5 {[%clk 0:00:12]} 43... Ke3 {[%clk 0:00:07.6]} 44. Kf1 {[%clk 0:00:10.7]}
44... Rxa4 {[%clk 0:00:04.9]} 45. Kg2 {[%clk 0:00:10.7]} 45... Ra1 {[%clk
0:00:04.1]} 46. Kh2 {[%clk 0:00:10.3]} 46... Ra2+ {[%clk 0:00:04.1]} 47. Kh3
{[%clk 0:00:10.6]} 47... Bc4 {[%clk 0:00:04.7]} 48. Re5 {[%clk 0:00:10.9]} 48...
Bf1+ {[%clk 0:00:04]} 49. Kg4 {[%clk 0:00:11.2]} 49... Kf2 {[%clk 0:00:01.7]}
50. Kxf4 {[%clk 0:00:10.7]} 50... Bg2 {[%clk 0:00:02.3]} 51. Rh5 {[%clk
0:00:09.9]} 51... Ra4 {[%clk 0:00:02.4]} 52. Rh2 {[%clk 0:00:09.5]} 52... Kg1
{[%clk 0:00:01.7]} 53. Rh6 {[%clk 0:00:09.6]} 53... Bxf3 {[%clk 0:00:01.2]} 54.
Kxf3 {[%clk 0:00:09.5]} 54... Ra3+ {[%clk 0:00:01.6]} 55. Kf4 {[%clk 0:00:09.9]}
55... Rb3 {[%clk 0:00:01.7]} 56. Rc6 {[%clk 0:00:08.8]} 56... Rb4 {[%clk
0:00:01.3]} 57. Kf3 {[%clk 0:00:08.1]} 1-0

[Event "Late-Titled-Tuesday-Blitz-February-27-2024"]
[Site "Chess.com"]
[Date "2024.02.27"]
[Round "11"]
[White "waltereador"]
[Black "LUISMIGUELOV"]
[Result "1-0"]
[WhiteElo "2300"]
[BlackElo "2182"]
[TimeControl "180+1"]
[EndTime "16:07:00 PST"]
[Termination "waltereador won on time"]

1. e4 {[%clk 0:02:55.4]} 1... c6 {[%clk 0:01:29.7]} 2. d4 {[%clk 0:02:54.5]}
2... d5 {[%clk 0:01:30.2]} 3. exd5 {[%clk 0:02:52.8]} 3... cxd5 {[%clk
0:01:30.2]} 4. Bd3 {[%clk 0:02:52.7]} 4... Nc6 {[%clk 0:01:30.7]} 5. c3 {[%clk
0:02:52.5]} 5... Qc7 {[%clk 0:01:31.1]} 6. Nf3 {[%clk 0:02:52.8]} 6... Bg4
{[%clk 0:01:30.9]} 7. h3 {[%clk 0:02:51.9]} 7... Bxf3 {[%clk 0:01:30]} 8. Qxf3
{[%clk 0:02:51.6]} 8... e6 {[%clk 0:01:29.7]} 9. Bf4 {[%clk 0:02:51.5]} 9... Bd6
{[%clk 0:01:29.3]} 10. Bxd6 {[%clk 0:02:51.1]} 10... Qxd6 {[%clk 0:01:29.5]} 11.
O-O {[%clk 0:02:50.5]} 11... Nf6 {[%clk 0:01:29.4]} 12. Re1 {[%clk 0:02:50.3]}
12... O-O {[%clk 0:01:29.6]} 13. Nd2 {[%clk 0:02:50.5]} 13... a6 {[%clk
0:01:29.9]} 14. Qe2 {[%clk 0:02:46.6]} 14... b5 {[%clk 0:01:29.5]} 15. a3 {[%clk
0:02:45.8]} 15... Na5 {[%clk 0:01:27.6]} 16. Nf3 {[%clk 0:02:44.9]} 16... Nc4
{[%clk 0:01:27.4]} 17. Rad1 {[%clk 0:02:44.3]} 17... Qc7 {[%clk 0:01:23.1]} 18.
Ne5 {[%clk 0:02:44.4]} 18... Nxe5 {[%clk 0:01:22.3]} 19. dxe5 {[%clk 0:02:43.2]}
19... Nd7 {[%clk 0:01:22.4]} 20. Qh5 {[%clk 0:02:31]} 20... g6 {[%clk
0:01:21.8]} 21. Qe2 {[%clk 0:02:26.5]} 21... Rfd8 {[%clk 0:01:21.7]} 22. h4
{[%clk 0:02:26.3]} 22... Nc5 {[%clk 0:01:19.2]} 23. Bb1 {[%clk 0:02:25.5]} 23...
Qe7 {[%clk 0:01:18.2]} 24. h5 {[%clk 0:02:25.4]} 24... Qg5 {[%clk 0:01:15.8]}
25. hxg6 {[%clk 0:02:25.6]} 25... hxg6 {[%clk 0:01:14.8]} 26. g3 {[%clk
0:02:24.4]} 26... Kg7 {[%clk 0:01:13.2]} 27. Kg2 {[%clk 0:02:24.9]} 27... Rh8
{[%clk 0:01:12.1]} 28. Rh1 {[%clk 0:02:25]} 28... Nd7 {[%clk 0:01:03]} 29. f4
{[%clk 0:02:24.9]} 29... Qe7 {[%clk 0:00:59.4]} 30. Qg4 {[%clk 0:02:20.2]} 30...
Rxh1 {[%clk 0:00:45.9]} 31. Rxh1 {[%clk 0:02:19.6]} 31... Rh8 {[%clk 0:00:46.4]}
32. Rxh8 {[%clk 0:02:17.2]} 32... Kxh8 {[%clk 0:00:45.9]} 33. Kf1 {[%clk
0:02:08.5]} 33... Kg7 {[%clk 0:00:45.7]} 34. Bd3 {[%clk 0:02:06.7]} 34... Nc5
{[%clk 0:00:43.2]} 35. Bc2 {[%clk 0:02:05.3]} 35... Ne4 {[%clk 0:00:42.8]} 36.
Bxe4 {[%clk 0:02:02.3]} 36... dxe4 {[%clk 0:00:42.8]} 37. Qe2 {[%clk 0:02:00.9]}
37... Qb7 {[%clk 0:00:42.4]} 38. Ke1 {[%clk 0:01:58.3]} 38... Qd5 {[%clk
0:00:41.9]} 39. Qd2 {[%clk 0:01:57.2]} 39... Qc4 {[%clk 0:00:40.3]} 40. Kf2
{[%clk 0:01:55.4]} 40... Qc5+ {[%clk 0:00:39.6]} 41. Qe3 {[%clk 0:01:53.8]}
41... Qc4 {[%clk 0:00:39.6]} 42. Qd4 {[%clk 0:01:52.6]} 42... Qa2 {[%clk
0:00:35.5]} 43. Qd2 {[%clk 0:01:52.7]} 43... Qc4 {[%clk 0:00:35]} 44. Ke3 {[%clk
0:01:52.6]} 44... Qf1 {[%clk 0:00:30.5]} 45. Kxe4 {[%clk 0:01:50.7]} 45... Qh1+
{[%clk 0:00:29.4]} 46. Kd3 {[%clk 0:01:49.3]} 46... Qf3+ {[%clk 0:00:27.8]} 47.
Kc2 {[%clk 0:01:48.3]} 47... Qxg3 {[%clk 0:00:27]} 48. b3 {[%clk 0:01:48.7]}
48... Qf3 {[%clk 0:00:23.5]} 49. Kb2 {[%clk 0:01:48.4]} 49... Qe4 {[%clk
0:00:22.3]} 50. Qf2 {[%clk 0:01:45.5]} 50... a5 {[%clk 0:00:21.4]} 51. Qd2
{[%clk 0:01:40.1]} 51... a4 {[%clk 0:00:20.9]} 52. bxa4 {[%clk 0:01:38.6]} 52...
bxa4 {[%clk 0:00:20.8]} 53. Qd4 {[%clk 0:01:28.5]} 53... Qe2+ {[%clk 0:00:20.3]}
54. Kc1 {[%clk 0:01:26.9]} 54... Qe1+ {[%clk 0:00:20]} 55. Kc2 {[%clk
0:01:26.9]} 55... Qe2+ {[%clk 0:00:19.9]} 56. Qd2 {[%clk 0:01:25.3]} 56... Qe4+
{[%clk 0:00:19.2]} 57. Kd1 {[%clk 0:01:20.6]} 57... Qh1+ {[%clk 0:00:18.4]} 58.
Ke2 {[%clk 0:01:18.9]} 58... Qg2+ {[%clk 0:00:18.7]} 59. Kd3 {[%clk 0:01:19]}
59... Qf3+ {[%clk 0:00:18.3]} 60. Kc4 {[%clk 0:01:14.7]} 60... Qc6+ {[%clk
0:00:17.3]} 61. Kb4 {[%clk 0:01:14.1]} 61... Qa6 {[%clk 0:00:16.2]} 62. Qd4
{[%clk 0:01:13.1]} 62... Qa8 {[%clk 0:00:13.2]} 63. c4 {[%clk 0:01:13]} 63...
Qa6 {[%clk 0:00:12]} 64. c5 {[%clk 0:01:13.1]} 64... g5 {[%clk 0:00:09.2]} 65.
fxg5 {[%clk 0:01:12.2]} 65... Qb7+ {[%clk 0:00:09]} 66. Kxa4 {[%clk 0:01:11.8]}
66... Qc6+ {[%clk 0:00:09.3]} 67. Kb4 {[%clk 0:01:10.4]} 67... Qb7+ {[%clk
0:00:08.9]} 68. Kc3 {[%clk 0:01:10.5]} 68... Qc6 {[%clk 0:00:07.5]} 69. a4
{[%clk 0:01:09.4]} 69... Qf3+ {[%clk 0:00:06.6]} 70. Kb4 {[%clk 0:01:09.8]}
70... Qb7+ {[%clk 0:00:05.5]} 71. Kc4 {[%clk 0:01:08.8]} 71... Qa6+ {[%clk
0:00:05.3]} 72. Kc3 {[%clk 0:01:09.1]} 72... Qa5+ {[%clk 0:00:05.1]} 73. Kd3
{[%clk 0:01:08.3]} 73... Qa6+ {[%clk 0:00:04.3]} 74. Ke3 {[%clk 0:01:08.5]}
74... Qc6 {[%clk 0:00:03.7]} 75. Kf4 {[%clk 0:01:07.1]} 75... Qg2 {[%clk
0:00:02]} 76. Qe3 {[%clk 0:00:44.1]} 1-0

[Event "Late-Titled-Tuesday-Blitz-February-27-2024"]
[Site "Chess.com"]
[Date "2024.02.27"]
[Round "11"]
[White "Defenstrator"]
[Black "RantomOpening"]
[Result "0-1"]
[WhiteElo "2417"]
[BlackElo "2567"]
[TimeControl "180+1"]
[EndTime "16:07:06 PST"]
[Termination "RantomOpening won by resignation"]

1. b3 {[%clk 0:03:00.2]} 1... d5 {[%clk 0:02:59.7]} 2. Bb2 {[%clk 0:03:00.7]}
2... e6 {[%clk 0:03:00.6]} 3. e4 {[%clk 0:02:59.3]} 3... Nf6 {[%clk 0:03:01.2]}
4. e5 {[%clk 0:02:59]} 4... Nfd7 {[%clk 0:03:01.6]} 5. Qg4 {[%clk 0:02:59.9]}
5... c5 {[%clk 0:03:02.5]} 6. f4 {[%clk 0:02:55.6]} 6... Nc6 {[%clk 0:03:02.8]}
7. Nf3 {[%clk 0:02:56.2]} 7... f5 {[%clk 0:03:00.7]} 8. Qg3 {[%clk 0:02:51.9]}
8... b6 {[%clk 0:02:58]} 9. Ng5 {[%clk 0:02:50.8]} 9... Ndb8 {[%clk 0:02:52.4]}
10. Nxh7 {[%clk 0:02:51.5]} 10... Ba6 {[%clk 0:02:46.1]} 11. Qg6+ {[%clk
0:02:35.2]} 11... Kd7 {[%clk 0:02:44.6]} 12. Ng5 {[%clk 0:02:35.9]} 12... Qe7
{[%clk 0:02:43.3]} 13. c4 {[%clk 0:01:53.3]} 13... d4 {[%clk 0:02:41.3]} 14. Nf7
{[%clk 0:01:38.9]} 14... Rg8 {[%clk 0:02:30.7]} 15. Nd6 {[%clk 0:01:21.9]} 15...
Rh8 {[%clk 0:02:30.6]} 16. a3 {[%clk 0:01:13.5]} 16... Qh4+ {[%clk 0:02:22]} 17.
g3 {[%clk 0:01:12.6]} 17... Qh5 {[%clk 0:02:21.3]} 18. Qxh5 {[%clk 0:01:08.4]}
18... Rxh5 {[%clk 0:02:22.2]} 19. Bg2 {[%clk 0:00:58.7]} 19... Bxd6 {[%clk
0:02:20.3]} 20. exd6 {[%clk 0:00:59.4]} 20... Kxd6 {[%clk 0:02:21.2]} 21. b4
{[%clk 0:00:56.8]} 21... Bb7 {[%clk 0:02:21.8]} 22. b5 {[%clk 0:00:52.6]} 22...
Na5 {[%clk 0:02:21.6]} 23. Bxb7 {[%clk 0:00:53.3]} 23... Nxb7 {[%clk 0:02:22.5]}
24. d3 {[%clk 0:00:54.2]} 24... Nd7 {[%clk 0:02:21.9]} 25. Nd2 {[%clk 0:00:55]}
25... e5 {[%clk 0:02:22.2]} 26. O-O {[%clk 0:00:53.2]} 26... Re8 {[%clk
0:02:20.9]} 27. Rae1 {[%clk 0:00:50.8]} 27... g6 {[%clk 0:02:18.2]} 28. Nf3
{[%clk 0:00:46.2]} 28... e4 {[%clk 0:02:13.7]} 29. dxe4 {[%clk 0:00:38.6]} 29...
fxe4 {[%clk 0:02:14.6]} 30. Ng5 {[%clk 0:00:32]} 30... e3 {[%clk 0:02:14.1]} 31.
h4 {[%clk 0:00:21.6]} 31... Kc7 {[%clk 0:02:14.4]} 32. f5 {[%clk 0:00:19.9]}
32... Nd6 {[%clk 0:02:13.4]} 33. fxg6 {[%clk 0:00:15.7]} 33... Nxc4 {[%clk
0:02:13.3]} 34. Bc1 {[%clk 0:00:14.7]} 34... d3 {[%clk 0:02:12.1]} 35. Bxe3
{[%clk 0:00:12]} 35... Rg8 {[%clk 0:01:54.7]} 36. Bf4+ {[%clk 0:00:11.4]} 36...
Kb7 {[%clk 0:01:53.5]} 37. Re7 {[%clk 0:00:11.1]} 37... Kc8 {[%clk 0:01:53.2]}
38. g7 {[%clk 0:00:09.9]} 38... d2 {[%clk 0:01:50.9]} 39. Ne6 {[%clk 0:00:08.7]}
39... Rd5 {[%clk 0:01:47.8]} 40. Rd1 {[%clk 0:00:07.2]} 40... Nxa3 {[%clk
0:01:11.1]} 41. Rxd2 {[%clk 0:00:07.1]} 41... Rxd2 {[%clk 0:01:11.4]} 42. Bxd2
{[%clk 0:00:08]} 42... Nxb5 {[%clk 0:01:12.3]} 43. Rf7 {[%clk 0:00:08.5]} 43...
Nd6 {[%clk 0:01:10.3]} 44. Rf8+ {[%clk 0:00:06.2]} 44... Nxf8 {[%clk 0:01:10.5]}
45. gxf8=Q+ {[%clk 0:00:07.1]} 45... Rxf8 {[%clk 0:01:10.6]} 46. Nxf8 {[%clk
0:00:08]} 46... a5 {[%clk 0:01:06.3]} 47. h5 {[%clk 0:00:08.1]} 47... Nf7 {[%clk
0:00:56.1]} 48. g4 {[%clk 0:00:05.2]} 48... a4 {[%clk 0:00:57]} 49. g5 {[%clk
0:00:06.1]} 49... a3 {[%clk 0:00:56.7]} 50. g6 {[%clk 0:00:05.8]} 50... Kd8
{[%clk 0:00:48.9]} 51. gxf7 {[%clk 0:00:04.9]} 51... Ke7 {[%clk 0:00:49.2]} 52.
Ng6+ {[%clk 0:00:04]} 52... Kxf7 {[%clk 0:00:50.1]} 53. Nf4 {[%clk 0:00:02.6]}
53... b5 {[%clk 0:00:51]} 54. Kf2 {[%clk 0:00:02.9]} 54... b4 {[%clk 0:00:51.9]}
55. Nd3 {[%clk 0:00:03.4]} 55... a2 {[%clk 0:00:51.5]} 56. Nxc5 {[%clk
0:00:02.4]} 56... a1=Q {[%clk 0:00:51.4]} 57. Ne4 {[%clk 0:00:02.2]} 57... Qd4+
{[%clk 0:00:51]} 58. Kf3 {[%clk 0:00:02.1]} 58... b3 {[%clk 0:00:49.5]} 59. Bc3
{[%clk 0:00:03]} 59... Qd3+ {[%clk 0:00:49.9]} 60. Kf4 {[%clk 0:00:03.9]} 60...
Qf1+ {[%clk 0:00:48]} 61. Ke3 {[%clk 0:00:04.5]} 61... Qh3+ {[%clk 0:00:47.6]}
62. Kd2 {[%clk 0:00:04.3]} 62... Qxh5 {[%clk 0:00:46.9]} 63. Nd6+ {[%clk
0:00:03.4]} 63... Ke6 {[%clk 0:00:46.3]} 64. Nc4 {[%clk 0:00:04.1]} 64... Qd5+
{[%clk 0:00:45.8]} 0-1